bitfinex-derivatives/quotes_ETHF0:USTF0_20260115
["timestamp","ask_amount","ask_price","bid_price","bid_amount"]
[1768476689438,1.18012214,3364.8,3363.9,0.00256848]
[1768476689634,1.18012214,3364.1,3363.1,0.1338788]
[1768476689843,1.18012214,3365.0,3363.2,0.15316884]
[1768476689844,1.18012214,3364.3,3363.2,0.15316884]
[1768476690742,1.18012214,3364.3,3363.2,0.15646954]
[1768476692447,0.13625171,3364.6,3363.2,0.15646954]
[1768476692650,1.18012214,3364.3,3363.2,0.15646954]
[1768476692946,0.13625171,3365.1,3363.5,1.18012214]
[1768476693146,1.18012214,3365.0,3363.5,1.18012214]
[1768476693548,1.18012214,3365.0,3363.2,0.00775954]
[1768476693549,0.00267996,3365.2,3363.9,1.18012214]
[1768476693749,0.00267996,3365.2,3364.1,1.18012214]
[1768476695747,0.00267996,3365.2,3363.9,1.32880214]
[1768476696748,0.00267996,3365.2,3364.1,0.2825488]
[1768476696950,0.00267996,3365.2,3364.2,1.18012214]
[1768476697249,0.00267996,3365.2,3364.1,0.2825488]
[1768476703053,1.18012214,3365.1,3364.1,0.14867]
[1768476703454,0.00267996,3365.2,3364.1,0.14867]
[1768476706050,1.31495318,3365.0,3363.6,0.14869]
[1768476706358,0.13625171,3364.9,3363.6,0.14869]
[1768476707858,0.13625171,3364.5,3363.6,0.14869]
[1768476708059,0.13625171,3364.5,3363.2,0.00775954]
[1768476708651,0.13625171,3364.5,3363.2,0.15646954]
[1768476712161,1.17870147,3365.0,3363.2,0.15646954]
[1768476712349,1.01868952,3364.9,3363.2,0.15646954]
[1768476712553,0.13447759,3364.9,3363.2,0.15646954]
[1768476713056,1.17870147,3363.7,3362.5,0.14874]
[1768476714161,1.17870147,3363.7,3362.8,0.00445884]
[1768476715062,0.13447759,3363.9,3362.8,0.00445884]
[1768476717961,0.13447759,3363.6,3362.5,0.00342452]
[1768476718167,0.13447759,3363.6,3361.6,0.13997538]
[1768476719067,0.13447759,3363.6,3362.3,0.00445884]
[1768476722870,0.13447759,3363.6,3361.9,1.17870147]
[1768476723065,0.13447759,3363.6,3362.2,0.00445884]
[1768476726179,0.00445884,3363.7,3362.2,0.29318422]
[1768476726375,0.00445884,3363.7,3362.3,0.13997538]
[1768476729374,0.00445884,3363.7,3362.5,0.13997538]
[1768476730982,0.00445884,3363.7,3362.5,0.28871538]
[1768476731280,0.00445884,3363.7,3362.6,0.13997538]
[1768476733287,0.00445884,3363.7,3362.2,0.00445884]
[1768476733288,0.13447759,3363.6,3362.2,0.00445884]
[1768476733484,0.28316759,3363.6,3362.2,0.00445884]
[1768476733792,0.13447759,3363.5,3362.2,0.00445884]
[1768476742289,0.88465433,3363.4,3362.2,0.00445884]
[1768476742488,0.13447759,3363.5,3362.2,0.00445884]
[1768476742688,0.88465414,3363.4,3362.2,0.00445884]
[1768476742880,0.13447759,3363.5,3362.2,0.00445884]
[1768476743079,0.88465424,3363.4,3362.2,0.00445884]
[1768476743284,0.13447759,3363.5,3362.2,0.00445884]
[1768476743484,0.88474261,3363.4,3362.2,0.00445884]
[1768476743679,0.13447759,3363.5,3362.2,0.00445884]
[1768476743883,0.88474344,3363.4,3362.2,0.00445884]
[1768476744195,0.13447759,3363.5,3362.2,0.00445884]
[1768476744393,0.88474265,3363.4,3362.2,0.00445884]
[1768476744690,0.13447759,3363.5,3362.2,0.00445884]
[1768476744890,0.88478602,3363.4,3362.2,0.00445884]
[1768476745078,0.13447759,3363.5,3362.2,0.00445884]
[1768476745281,0.88478615,3363.4,3362.2,0.00445884]
[1768476745479,0.13447759,3363.5,3362.2,0.00445884]
[1768476745684,0.88484134,3363.4,3362.2,0.00445884]
[1768476745884,0.13447759,3363.5,3362.2,0.00445884]
[1768476746195,0.88484145,3363.4,3362.2,0.00445884]
[1768476746494,0.13447759,3363.5,3362.2,0.00445884]
[1768476746792,0.88490159,3363.4,3362.2,0.00445884]
[1768476746987,0.13447759,3363.5,3362.2,0.00445884]
[1768476747188,0.88490204,3363.4,3362.2,0.00445884]
[1768476747390,0.13447759,3363.5,3362.2,0.00445884]
[1768476747688,0.88513263,3363.4,3362.2,0.00445884]
[1768476747892,0.13447759,3363.5,3362.2,0.00445884]
[1768476748099,1.02720806,3363.4,3362.2,0.00445884]
[1768476748399,0.14203315,3363.4,3362.2,0.00445884]
[1768476769626,1.3219272,3363.3,3362.2,0.00445884]
[1768476769824,0.14203315,3363.2,3362.2,0.00445884]
[1768476773124,0.14203315,3363.2,3361.5,3.75201945]
[1768476773335,0.14203315,3363.2,3361.6,0.13318064]
[1768476773336,0.88735351,3363.1,3361.6,0.13318064]
[1768476773622,2.06724756,3363.0,3361.7,0.13046553]
[1768476773831,1.17989405,3363.0,3361.7,0.13046553]
[1768476775030,1.17989405,3362.8,3361.7,0.13046553]
[1768476775230,1.17989405,3362.2,3361.6,0.00271511]
[1768476775420,1.17989405,3362.2,3361.3,0.13046553]
[1768476776128,1.17989405,3362.2,3360.9,0.13046553]
[1768476776326,1.17989405,3362.2,3361.2,0.00445884]
[1768476776526,0.00445884,3361.9,3361.2,0.00445884]
[1768476776724,0.00445884,3361.9,3360.4,3.75201945]
[1768476776725,1.17989405,3361.1,3360.0,0.13046553]
[1768476777028,1.17989405,3361.5,3360.1,0.13046553]
[1768476777426,1.17989405,3360.5,3359.2,0.13046553]
[1768476777728,1.17989405,3361.0,3359.2,0.00385212]
[1768476777729,1.17989405,3360.2,3359.2,0.00385212]
[1768476777923,0.00759275,3360.2,3359.5,0.00297259]
[1768476778322,1.17989405,3359.8,3359.2,0.00385212]
[1768476778525,1.17989405,3359.5,3358.7,0.13046553]
[1768476778731,1.17989405,3359.8,3358.7,0.13046553]
[1768476779226,0.00759275,3360.2,3358.7,0.13046553]
[1768476779426,0.00759275,3360.2,3358.7,0.13334893]
[1768476784018,0.00759275,3360.2,3358.7,0.28225893]
[1768476784219,0.00759275,3360.2,3358.8,0.13046553]
[1768476784619,0.00759275,3360.2,3359.0,0.13046553]
[1768476789336,0.00759275,3360.2,3358.7,0.0028834]
[1768476798046,0.14652957,3360.2,3358.7,0.0028834]
[1768476799143,0.00759275,3360.2,3358.7,0.0028834]
[1768476799343,1.18250217,3359.7,3358.7,0.13334893]
[1768476800342,1.18250217,3359.7,3358.7,0.0028834]
[1768476800646,1.18250217,3359.4,3358.7,0.0028834]
[1768476801441,0.36121576,3359.9,3358.7,0.0028834]
[1768476801642,1.18250217,3359.1,3358.5,0.14891]
[1768476801847,0.36121576,3359.9,3358.5,0.14891]
[1768476802045,1.18250217,3359.5,3358.5,0.14891]
[1768476802639,1.18250217,3359.5,3358.5,0.1512027]
[1768476803746,1.18250217,3358.6,3357.8,0.14894]
[1768476804148,0.37656169,3359.6,3357.2,0.36391052]
[1768476804149,1.18250217,3358.3,3357.2,0.36391052]
[1768476804663,0.00446555,3358.1,3357.2,0.51556033]
[1768476805350,0.00446555,3358.1,3355.7,9.7932932]
[1768476805351,1.18250217,3357.3,3355.0,3.70608198]
[1768476805548,2.21808275,3358.0,3355.6,1.33154217]
[1768476805549,1.18250217,3358.0,3355.6,1.33154217]
[1768476805747,1.18250217,3357.4,3355.6,0.14904]
[1768476805946,1.18250217,3357.1,3355.6,0.14904]
[1768476806254,1.18600741,3357.1,3355.7,1.18250217]
[1768476806439,0.00350524,3357.1,3355.7,1.18250217]
[1768476806748,0.00350524,3357.1,3356.0,1.18250217]
[1768476807248,0.00350524,3357.1,3356.0,1.54641269]
[1768476807555,0.00350524,3357.1,3356.0,0.36391052]
[1768476807854,0.00350524,3357.1,3355.6,0.00219522]
[1768476809050,0.38006693,3357.1,3355.6,0.00219522]
[1768476809253,1.81181503,3356.7,3354.8,0.36391052]
[1768476809651,0.00446555,3356.1,3354.8,0.36391052]
[1768476809952,0.00446555,3356.1,3354.1,0.05186842]
[1768476809953,0.00446555,3356.1,3355.1,0.36391052]
[1768476810153,0.00446555,3356.1,3355.1,0.51625564]
[1768476810346,0.00446555,3356.1,3355.1,0.00327512]
[1768476811758,0.00446555,3356.1,3355.1,0.36718564]
[1768476812256,0.00350524,3357.1,3355.2,0.36391052]
[1768476812456,0.00350524,3357.1,3355.3,0.36391052]
[1768476813156,0.00350524,3357.1,3355.1,0.00327512]
[1768476813157,0.00350524,3357.1,3355.5,0.36391052]
[1768476813353,0.00446555,3356.6,3355.5,0.36391052]
[1768476813660,0.00446555,3356.6,3355.5,0.51296052]
[1768476813864,0.00350524,3357.1,3355.8,0.36391052]
[1768476814452,0.00350524,3357.1,3355.7,0.00446555]
[1768476814942,0.00446555,3356.7,3355.7,0.00446555]
[1768476815958,0.00446555,3356.7,3355.7,0.36837607]
[1768476816847,0.00350524,3357.1,3356.0,0.36391052]
[1768476818061,0.00446555,3356.9,3356.0,0.36391052]
[1768476819668,0.00083613,3356.9,3356.0,0.36391052]
[1768476820851,0.00083613,3356.9,3355.9,0.14903]
[1768476821966,0.00083613,3356.9,3355.7,0.00446555]
[1768476822561,1.81181503,3356.3,3355.1,0.00327512]
[1768476822864,2.18837672,3356.3,3355.1,0.00327512]
[1768476823056,4.515,3356.8,3355.1,0.00327512]
[1768476823057,4.89156169,3356.7,3355.1,0.00327512]
[1768476823363,0.00083613,3356.9,3355.1,0.36718564]
[1768476829466,0.37739782,3356.9,3355.1,0.36718564]
[1768476830670,0.00083613,3356.9,3355.6,0.61222837]
[1768476830965,0.00083613,3356.9,3355.9,0.61669392]
[1768476832368,0.00083613,3356.9,3355.9,0.00446555]
[1768476832569,0.00083613,3356.9,3355.3,0.61222837]
[1768476833163,0.88944379,3356.8,3355.3,0.61222837]
[1768476833372,0.00083613,3356.9,3355.3,0.61222837]
[1768476833574,0.88946256,3356.8,3355.3,0.61222837]
[1768476833779,0.00083613,3356.9,3355.3,0.61222837]
[1768476834269,0.89060626,3356.8,3355.3,0.61222837]
[1768476834472,0.00083613,3356.9,3355.3,0.61222837]
[1768476834772,0.89060613,3356.8,3355.3,0.76128837]
[1768476834966,0.00083613,3356.9,3355.3,0.76128837]
[1768476835166,0.8906077,3356.8,3355.3,0.76128837]
[1768476835368,0.8906077,3356.7,3355.3,0.76128837]
[1768476835568,0.8906077,3356.6,3355.3,0.76128837]
[1768476835769,0.00083613,3356.9,3355.3,0.76128837]
[1768476835963,0.89203642,3356.8,3355.3,0.76128837]
[1768476836163,0.89203642,3356.7,3355.3,0.76128837]
[1768476836371,0.00083613,3356.9,3355.3,0.76128837]
[1768476836572,1.49387077,3356.8,3355.1,0.00327512]
[1768476836878,0.89207541,3356.7,3355.1,0.00327512]
[1768476838579,0.60179536,3356.6,3355.1,0.00327512]
[1768476838778,0.89207541,3356.5,3355.1,0.00327512]
[1768476840469,0.89207541,3356.5,3355.1,0.61550349]
[1768476840672,0.89207541,3356.4,3355.1,0.61550349]
[1768476840871,0.89207541,3356.3,3355.1,0.61550349]
[1768476841176,0.14899,3356.8,3355.1,0.61550349]
[1768476841377,0.89210432,3356.7,3355.1,0.61550349]
[1768476841579,0.89210432,3356.6,3355.1,0.00327512]
[1768476841779,0.89210432,3356.5,3355.1,0.00327512]
[1768476841980,0.89210432,3356.4,3355.1,0.00327512]
[1768476842171,0.89210432,3356.3,3355.1,0.00327512]
[1768476842369,0.60179536,3356.4,3355.1,0.00327512]
[1768476842682,0.89205174,3356.3,3355.1,0.00327512]
[1768476842882,0.60179536,3356.4,3355.1,0.00327512]
[1768476843083,0.89205149,3356.3,3355.1,0.00327512]
[1768476843288,0.89193613,3356.2,3355.1,0.00327512]
[1768476843582,0.60179536,3356.0,3354.3,0.1491]
[1768476843886,0.89193613,3355.9,3354.3,0.1491]
[1768476844075,0.89193613,3355.8,3354.8,0.00365176]
[1768476844272,0.60179536,3356.0,3354.8,0.00365176]
[1768476844579,0.8916304,3355.9,3354.8,0.00660917]
[1768476844779,0.60179536,3356.0,3354.8,0.00660917]
[1768476844978,0.89162939,3355.9,3354.8,0.00660917]
[1768476845184,0.60179536,3356.0,3354.8,0.00660917]
[1768476845385,0.89145138,3355.9,3354.8,0.00660917]
[1768476845585,0.60179536,3356.0,3354.8,0.00660917]
[1768476845882,0.89145182,3355.9,3354.8,0.00660917]
[1768476846083,0.60179536,3356.0,3354.8,0.00660917]
[1768476846276,0.89145187,3355.9,3354.8,0.00660917]
[1768476846479,0.89145187,3355.9,3354.2,0.61222837]
[1768476846480,0.8912537,3355.8,3354.2,0.61222837]
[1768476846784,0.60179536,3356.0,3354.2,0.61222837]
[1768476846991,0.89125789,3355.9,3354.2,0.61222837]
[1768476847194,0.89125789,3355.8,3354.2,0.61222837]
[1768476847384,0.89125789,3355.7,3354.2,0.61222837]
[1768476847685,0.60179536,3355.5,3354.2,0.00280682]
[1768476847993,0.00446555,3355.2,3354.2,0.00280682]
[1768476848877,0.00446555,3355.2,3352.4,0.61222837]
[1768476848878,0.60179536,3355.0,3352.4,0.61222837]
[1768476849074,0.75089536,3354.3,3352.4,0.61222837]
[1768476849274,0.60179536,3354.1,3352.0,0.61222837]
[1768476849479,0.1491,3354.3,3352.0,0.61222837]
[1768476849480,0.60179536,3353.9,3352.0,0.61222837]
[1768476849691,0.00447227,3353.4,3352.0,0.61222837]
[1768476849988,0.00280042,3353.9,3352.7,0.61222837]
[1768476850380,0.00280042,3353.9,3353.0,0.14894057]
[1768476850680,0.00280042,3353.9,3353.0,0.76116894]
[1768476850885,0.00280042,3353.9,3353.1,0.14894057]
[1768476851086,0.00447227,3353.8,3353.0,0.61222837]
[1768476851288,1.531,3354.8,3353.4,0.14894057]
[1768476851485,0.75084536,3355.5,3353.2,0.61670064]
[1768476851692,6.00261886,3355.4,3353.2,0.61670064]
[1768476851895,1.48961886,3355.3,3353.2,0.61670064]
[1768476852094,0.8878235,3355.2,3353.2,0.61670064]
[1768476852286,0.00447227,3354.5,3353.2,0.61670064]
[1768476852686,0.00447227,3354.5,3353.5,0.14894057]
[1768476852890,0.00447227,3354.5,3353.5,0.61222837]
[1768476853195,0.00447227,3354.5,3353.9,0.14894057]
[1768476853589,0.00447227,3354.5,3354.1,0.14894057]
[1768476853789,0.00447227,3354.5,3353.9,0.14894057]
[1768476853990,0.00447227,3354.5,3354.0,0.14894057]
[1768476854490,0.00447227,3354.5,3354.1,0.14894057]
[1768476854707,0.00447227,3354.5,3354.0,0.14894057]
[1768476855292,0.00447227,3354.5,3354.1,0.14894057]
[1768476855596,0.00447227,3354.5,3354.0,0.14894057]
[1768476855792,0.00354351,3355.2,3354.0,0.14894057]
[1768476856093,0.00354351,3355.2,3353.7,0.61222837]
[1768476856593,0.00354351,3355.2,3353.7,0.76116894]
[1768476856795,0.00447227,3354.8,3353.7,0.76116894]
[1768476856991,0.00447227,3354.8,3353.9,0.14894057]
[1768476857382,0.00447227,3354.8,3354.0,0.14894057]
[1768476857586,0.00447227,3354.8,3353.7,0.61222837]
[1768476858083,0.00447227,3354.8,3354.0,0.14894057]
[1768476858594,0.00447227,3354.8,3354.1,0.14894057]
[1768476858796,0.00447227,3354.8,3354.0,0.14894057]
[1768476859180,0.00447227,3354.8,3354.1,0.14894057]
[1768476859489,0.00447227,3354.8,3354.0,0.14894057]
[1768476859992,0.00447227,3354.8,3354.1,0.14894057]
[1768476860187,0.00447227,3354.8,3354.0,0.14894057]
[1768476860688,0.00447227,3354.8,3354.1,0.14894057]
[1768476860889,0.00447227,3354.8,3354.0,0.14894057]
[1768476861398,0.00354351,3355.2,3354.3,0.14894057]
[1768476861603,0.00354351,3355.2,3353.7,0.61222837]
[1768476861891,0.00354351,3355.2,3354.0,0.14894057]
[1768476862287,0.00354351,3355.2,3353.7,0.61222837]
[1768476862288,0.00354351,3355.2,3354.1,0.14894057]
[1768476862600,0.00354351,3355.2,3354.0,0.14894057]
[1768476862992,0.00354351,3355.2,3353.7,0.76135837]
[1768476862993,0.00354351,3355.2,3354.2,0.14894057]
[1768476863191,0.00354351,3355.2,3354.2,0.72787954]
[1768476863389,0.00354351,3355.2,3354.4,0.14894057]
[1768476863590,0.00354351,3355.2,3354.6,0.14894057]
[1768476863797,0.00354351,3355.2,3354.8,0.14894057]
[1768476864107,0.00354351,3355.2,3354.7,0.14894057]
[1768476864294,0.00239604,3355.2,3354.7,0.896792]
[1768476864600,0.00239604,3355.2,3354.9,0.14894057]
[1768476864784,0.00239604,3355.2,3354.8,0.14894057]
[1768476865186,2.20360822,3356.5,3354.7,0.74785143]
[1768476865496,0.88941015,3356.4,3354.7,0.74785143]
[1768476865800,0.88941015,3356.3,3354.7,0.74785143]
[1768476865999,1.531,3356.3,3354.7,0.74785143]
[1768476866187,0.88959789,3356.2,3354.7,0.74785143]
[1768476866392,0.00447227,3355.8,3355.2,0.00447227]
[1768476867504,0.00447227,3355.8,3355.2,0.15341284]
[1768476867903,0.00447227,3355.8,3355.3,0.14894057]
[1768476870502,0.00447227,3355.8,3355.2,0.00447227]
[1768476870503,0.00447227,3355.8,3355.4,0.14894057]
[1768476870806,0.00227634,3356.3,3355.2,0.00447227]
[1768476871007,0.95324708,3355.6,3354.4,0.00285647]
[1768476871195,0.80419708,3355.4,3353.6,0.74785143]
[1768476871495,3.22556047,3355.3,3353.6,0.74785143]
[1768476871700,0.89036339,3355.2,3353.6,0.74785143]
[1768476871896,0.89036339,3355.2,3353.6,0.896792]
[1768476872107,0.89036339,3355.2,3354.1,0.00447227]
[1768476872800,1.531,3355.2,3354.1,0.15341284]
[1768476873295,1.531,3355.4,3354.1,0.15341284]
[1768476873498,0.8911411,3355.3,3354.1,0.00447227]
[1768476873702,1.531,3355.4,3354.1,0.00447227]
[1768476873904,0.89114105,3355.3,3354.1,0.00447227]
[1768476874204,1.531,3355.4,3354.1,0.00447227]
[1768476874404,0.00447227,3355.1,3354.1,0.00447227]
[1768476874905,0.00447227,3355.1,3353.6,0.00337227]
[1768476875094,0.00447227,3355.1,3353.7,0.14894057]
[1768476875507,1.6954036,3355.0,3352.6,0.74785143]
[1768476875807,0.80419708,3354.8,3353.5,0.00447227]
[1768476875997,0.80419708,3354.6,3352.6,0.74785143]
[1768476876196,0.80419708,3354.4,3352.6,0.74785143]
[1768476876514,1.53,3354.3,3352.6,0.7501272]
[1768476876807,1.69517597,3354.2,3352.6,0.00227577]
[1768476876999,0.89097889,3354.1,3353.1,0.00447227]
[1768476877195,2.05459822,3353.7,3351.4,0.89708143]
[1768476877408,0.95333708,3353.5,3351.4,0.74785143]
[1768476877705,0.80419708,3353.3,3351.4,0.74785143]
[1768476877902,1.53,3353.2,3351.4,0.74785143]
[1768476878102,2.33786871,3353.2,3351.4,0.75097643]
[1768476878308,0.00447227,3352.6,3351.4,0.003125]
[1768476878808,0.80866935,3352.6,3350.5,0.74785143]
[1768476879010,5.4031298,3352.5,3350.5,0.74785143]
[1768476879304,0.15365227,3352.6,3350.7,0.15206557]
[1768476879494,0.00447227,3352.6,3350.3,0.14928]
[1768476879709,1.531,3352.5,3351.1,0.00447227]
[1768476879897,0.00447227,3352.6,3351.1,0.00447227]
[1768476880099,0.00447227,3352.6,3351.3,0.74785143]
[1768476880307,0.00447227,3352.6,3351.6,0.15206557]
[1768476880613,0.00367163,3353.2,3351.7,0.899917]
[1768476880809,0.00367163,3353.2,3351.7,0.74785143]
[1768476881209,0.00367163,3353.2,3351.9,0.15206557]
[1768476881409,0.00367163,3353.2,3352.2,0.15206557]
[1768476881608,0.00447227,3352.9,3352.4,0.15206557]
[1768476882112,0.00447227,3352.9,3351.9,0.74785143]
[1768476883100,0.80419708,3354.8,3351.9,0.74785143]
[1768476883306,2.42021278,3354.2,3351.9,0.74785143]
[1768476883507,1.533,3354.2,3351.9,0.74785143]
[1768476883915,2.33719708,3354.2,3351.9,0.74785143]
[1768476884213,2.34094298,3354.2,3351.9,0.74785143]
[1768476884604,2.34094298,3354.2,3351.9,0.89706143]
[1768476885206,0.80794298,3354.2,3351.9,0.89706143]
[1768476885403,3.35210528,3354.1,3351.9,0.89706143]
[1768476886207,1.536,3354.1,3351.9,0.89706143]
[1768476886404,3.35210528,3354.1,3351.9,0.89706143]
[1768476886713,1.81610528,3354.1,3352.1,0.74785143]
[1768476887013,0.00447227,3353.4,3352.1,0.74785143]
[1768476887706,0.00447227,3353.4,3351.4,0.89708143]
[1768476887707,1.81610528,3353.1,3351.4,0.89708143]
[1768476887908,1.538,3353.0,3351.4,0.89708143]
[1768476888709,1.537,3352.9,3351.4,0.89708143]
[1768476889509,1.81610528,3352.6,3350.3,0.00272794]
[1768476889710,1.81610528,3352.1,3350.3,0.75057937]
[1768476890810,1.81610528,3351.6,3350.3,0.75057937]
[1768476891115,1.81973973,3351.6,3350.3,0.75057937]
[1768476891706,0.00447227,3351.3,3350.3,0.75057937]
[1768476893310,0.00447227,3351.3,3350.5,0.00447227]
[1768476893708,0.00363445,3351.6,3350.5,0.89400494]
[1768476894111,0.84808331,3352.9,3350.5,0.89400494]
[1768476894316,1.81610528,3352.7,3350.5,0.89400494]
[1768476894907,0.00447227,3351.9,3350.5,0.89400494]
[1768476895307,0.00797339,3351.9,3350.5,0.89400494]
[1768476898527,0.00797339,3351.9,3350.5,0.00447227]
[1768476900216,1.81610528,3351.7,3350.5,0.00447227]
[1768476900421,1.81610528,3351.7,3350.3,0.00272794]
[1768476900722,1.81610528,3351.2,3349.4,1.0907958]
[1768476901321,0.00797339,3351.9,3350.0,0.14929]
[1768476901517,0.00797339,3351.9,3350.1,0.88953267]
[1768476901727,0.00797339,3351.9,3350.1,0.89260108]
[1768476901927,0.00797339,3351.9,3350.3,0.88953267]
[1768476902322,0.00797339,3351.9,3350.8,0.00447227]
[1768476906321,0.00797339,3351.9,3350.8,0.89400494]
[1768476907230,1.81610528,3352.8,3350.8,0.89400494]
[1768476907429,0.88988738,3352.7,3350.8,0.89400494]
[1768476907631,3.35110528,3352.8,3350.8,0.89400494]
[1768476907825,0.89000103,3352.7,3350.8,0.89400494]
[1768476908030,1.68416,3353.0,3351.0,1.03878267]
[1768476908235,0.0038662,3352.7,3351.1,0.14924]
[1768476908529,0.00447227,3352.3,3351.2,0.88953267]
[1768476908934,0.0038662,3352.7,3351.2,0.88953267]
[1768476909135,0.0038662,3352.7,3351.6,0.88953267]
[1768476909335,0.0038662,3352.7,3351.6,1.03875267]
[1768476909638,1.81610528,3353.8,3351.6,1.03875267]
[1768476909836,0.89028903,3353.7,3351.8,0.88953267]
[1768476910029,0.00447227,3353.1,3351.8,0.88953267]
[1768476910732,0.0080158,3353.1,3351.8,0.88953267]
[1768476911134,0.0080158,3353.1,3351.8,1.03874267]
[1768476911842,0.0080158,3353.1,3351.8,0.88953267]
[1768476912138,2.38208331,3354.1,3352.1,0.88953267]
[1768476912336,0.89037262,3354.0,3352.1,0.88953267]
[1768476912540,0.89037262,3353.9,3352.1,0.88953267]
[1768476912741,2.38208331,3354.1,3352.1,0.88953267]
[1768476912942,0.89019537,3354.0,3352.1,0.88953267]
[1768476913237,0.00295911,3353.4,3352.7,0.00447227]
[1768476913443,0.00295911,3353.4,3352.7,0.00728973]
[1768476916842,0.00288843,3354.0,3352.7,0.8968224]
[1768476917745,0.00288843,3354.0,3352.7,1.0459924]
[1768476920146,0.88856336,3353.9,3352.7,0.00728973]
[1768476920439,0.85097174,3354.0,3352.7,0.00728973]
[1768476920632,0.88853886,3353.9,3352.7,0.00728973]
[1768476920834,0.85097174,3354.0,3352.7,0.00728973]
[1768476921038,0.88857454,3353.9,3352.7,0.00728973]
[1768476921239,0.85097174,3354.0,3352.7,0.00728973]
[1768476921444,0.00288843,3354.0,3352.7,0.00728973]
[1768476924043,1.01742763,3354.0,3352.7,0.00728973]
[1768476924842,2.83064448,3353.5,3351.5,1.09090621]
[1768476925648,2.83064448,3353.5,3351.5,1.0946922]
[1768476925837,0.00447227,3352.8,3352.2,0.00447227]
[1768476926551,0.00447227,3352.8,3351.5,1.0946922]
[1768476927549,0.00447227,3352.8,3351.8,0.00447227]
[1768476935648,1.81610528,3352.5,3351.0,0.94167621]
[1768476935853,1.528,3352.6,3351.0,0.94167621]
[1768476936053,1.528,3352.6,3350.0,0.94167621]
[1768476936354,1.0145392,3352.5,3350.6,0.14926]
[1768476936657,1.0145392,3352.5,3351.2,0.00447227]
[1768476937262,0.89082042,3352.4,3351.2,0.00447227]
[1768476937462,1.0145392,3352.5,3351.2,0.00447227]
[1768476938964,1.531,3352.4,3351.2,0.00447227]
[1768476942566,1.0145392,3352.3,3350.6,0.15159145]
[1768476943476,1.0145392,3352.3,3350.6,1.09326766]
[1768476943670,1.0145392,3352.3,3351.1,0.00447227]
[1768476943871,1.535,3352.2,3351.1,0.00447227]
[1768476948383,0.14918,3352.6,3351.1,0.00447227]
[1768476948577,1.534,3352.2,3351.1,0.00447227]
[1768476950986,1.533,3352.3,3351.1,1.04243493]
[1768476951183,0.14918,3352.6,3351.1,1.04243493]
[1768476951485,1.533,3352.4,3351.1,1.04243493]
[1768476952277,0.14918,3352.6,3351.1,1.04243493]
[1768476952485,1.533,3352.5,3351.1,1.04243493]
[1768476952983,1.533,3352.6,3351.1,1.04243493]
[1768476953377,0.00447227,3352.8,3351.2,0.14924]
[1768476953580,0.00447227,3352.8,3351.3,1.03796266]
[1768476956484,0.00447227,3352.8,3351.1,0.00447227]
[1768476956682,1.06371585,3352.6,3351.1,0.00447227]
[1768476956993,0.00447227,3352.8,3351.1,0.00447227]
[1768476956994,1.95450962,3352.5,3351.1,0.00447227]
[1768476957289,0.89079377,3352.4,3351.1,0.00447227]
[1768476957482,1.06371585,3352.5,3351.1,0.00447227]
[1768476957674,0.89089387,3352.4,3351.1,0.00447227]
[1768476957886,1.06371585,3352.5,3351.1,0.00447227]
[1768476958088,0.89089315,3352.4,3351.1,0.00447227]
[1768476958288,1.06371585,3352.5,3351.1,0.00447227]
[1768476958491,0.891016,3352.4,3351.1,0.00447227]
[1768476958691,1.06371585,3352.5,3351.1,0.00447227]
[1768476958894,0.89104124,3352.4,3351.1,0.00447227]
[1768476959191,1.06371585,3352.5,3351.1,0.00447227]
[1768476959392,0.89104175,3352.4,3351.1,0.00447227]
[1768476959596,1.06371585,3352.5,3351.1,0.00447227]
[1768476959792,0.89116766,3352.4,3351.1,0.00447227]
[1768476959984,0.89116766,3352.3,3351.1,0.00447227]
[1768476960186,1.06371585,3352.5,3351.1,0.00447227]
[1768476960386,1.95481552,3352.4,3351.1,0.00447227]
[1768476960594,0.89109967,3352.3,3351.1,0.00447227]
[1768476961085,1.95481552,3352.3,3351.1,0.00447227]
[1768476961285,1.06371585,3352.3,3351.1,0.00447227]
[1768476963392,0.89139591,3352.2,3351.1,0.00447227]
[1768476963585,0.89139591,3352.1,3351.1,0.00447227]
[1768476963786,0.89139591,3352.0,3351.1,0.00447227]
[1768476963986,0.89139591,3351.9,3351.1,0.00447227]
[1768476964196,1.06371585,3352.3,3351.1,0.00447227]
[1768476964387,0.89150084,3352.2,3351.1,0.00447227]
[1768476964581,0.89150084,3352.1,3351.1,0.00447227]
[1768476964886,1.06371585,3352.3,3351.1,0.00447227]
[1768476965085,0.89165872,3352.2,3351.1,0.00447227]
[1768476965286,2.43165872,3352.1,3351.1,0.00447227]
[1768476965490,1.54,3352.1,3351.1,0.00447227]
[1768476973201,0.89161036,3352.0,3351.1,0.00447227]
[1768476973402,1.54,3352.1,3351.1,0.00447227]
[1768476973602,0.89159108,3352.0,3351.1,0.00447227]
[1768476973898,1.54,3352.1,3351.1,0.00447227]
[1768476974093,0.89158953,3352.0,3351.1,0.00447227]
[1768476974292,1.54,3352.1,3351.1,0.00447227]
[1768476974602,2.25183901,3352.3,3351.1,0.00447227]
[1768476974805,2.44956858,3352.2,3351.1,0.00447227]
[1768476975096,1.558,3352.2,3351.1,0.00447227]
[1768476976711,1.06371585,3352.1,3350.6,0.00233145]
[1768476978393,1.06371585,3352.1,3351.0,0.00447227]
[1768476979104,2.62171585,3352.1,3351.0,0.00447227]
[1768476979793,2.25183901,3352.6,3351.0,0.00447227]
[1768476979997,2.45042062,3352.5,3351.0,0.00447227]
[1768476980203,0.89242062,3352.4,3351.0,0.00447227]
[1768476980406,1.558,3352.5,3351.0,0.00447227]
[1768476980604,0.89240916,3352.4,3351.0,0.00447227]
[1768476980812,1.558,3352.4,3351.0,0.00447227]
[1768476981701,0.00447227,3352.8,3351.3,0.99192466]
[1768476983408,0.00447227,3352.8,3351.3,1.14115466]
[1768476989619,0.00447227,3352.8,3351.5,1.03969]
[1768476990708,1.16580396,3353.8,3351.7,1.03969]
[1768476990918,0.89157916,3353.7,3351.7,1.18891]
[1768476991222,2.72080396,3353.8,3351.7,1.18891]
[1768476991518,2.72080396,3353.8,3351.9,1.03969]
[1768476991919,0.00447227,3353.2,3351.9,1.1889]
[1768476994322,0.00447227,3353.2,3352.1,1.03969]
[1768476996921,0.00447227,3353.2,3352.1,1.18889]
[1768476999127,0.00288843,3354.0,3352.3,1.03969]
[1768476999816,0.00288843,3354.0,3352.3,1.18888]
[1768477000219,0.00288843,3354.0,3352.8,0.00447227]
[1768477001325,0.00447227,3353.7,3352.8,0.00447227]
[1768477001520,0.00447227,3353.7,3351.6,0.14922]
[1768477001521,1.18812316,3352.9,3351.6,0.14922]
[1768477001727,1.18812316,3352.9,3351.4,1.03969]
[1768477002521,1.01668396,3353.3,3351.8,0.00447227]
[1768477002522,2.20480712,3353.3,3351.8,0.00447227]
[1768477002929,1.01668396,3353.3,3351.8,0.00447227]
[1768477006130,2.20480712,3353.2,3351.8,0.00447227]
[1768477007327,1.18752858,3352.7,3351.8,0.00447227]
[1768477007525,0.14914,3353.4,3350.7,0.14926]
[1768477007526,1.18752858,3352.1,3350.7,0.14926]
[1768477007743,1.18752858,3351.5,3350.6,0.00233145]